bitfinex/quotes_ETHUSD_20240729
["timestamp","ask_amount","ask_price","bid_price","bid_amount"]
[1722271051669,5.37753,3277.6,3276.6,3.05191]
[1722271051670,3.1274495,3277.5,3276.6,3.05191]
[1722271051874,0.0762895,3277.5,3276.7,3.05183]
[1722271052074,5.37756,3277.6,3276.7,3.662204]
[1722271052273,3.05111,3277.5,3276.5,3.05198]
[1722271052515,3.1274884,3277.4,3276.5,3.05198]
[1722271052701,0.0762884,3277.4,3276.6,3.05193]
[1722271053027,0.07628849,3277.5,3276.5,3.05196]
[1722271053475,0.07628849,3277.5,3276.5,4.0228981]
[1722271053672,0.07628849,3277.5,3276.8,3.05175]
[1722271053885,0.07628849,3277.5,3276.5,0.9709381]
[1722271053886,0.07628849,3277.5,3276.6,3.05186]
[1722271054116,2.3265,3277.6,3276.7,3.05183]
[1722271054279,2.3265,3277.6,3276.8,0.33562746]
[1722271054280,0.07628392,3277.5,3276.8,0.33562746]
[1722271054634,0.07628392,3277.5,3276.5,4.0229381]
[1722271054785,0.07628392,3277.5,3276.6,3.05193]
[1722271055118,0.07628392,3277.5,3276.5,4.0229381]
[1722271055119,0.07628392,3277.5,3276.5,0.9709381]
[1722271055318,3.05134,3277.3,3276.4,3.0]
[1722271055522,0.07629008,3277.2,3276.4,3.0]
[1722271055709,0.07629008,3277.2,3276.1,3.0524]
[1722271055889,0.07629008,3277.2,3275.9,3.05255]
[1722271055890,3.05181,3276.8,3275.9,3.05255]
[1722271056094,3.05181,3276.8,3275.3,3.05309]
[1722271056095,3.05231,3276.2,3275.3,3.05309]
[1722271056289,3.12851187,3276.4,3275.3,3.05309]
[1722271056489,3.12851187,3276.4,3274.6,7.34]
[1722271056490,3.05222,3276.3,3274.6,10.39378]
[1722271056689,3.05241,3276.1,3275.1,3.05327]
[1722271056890,0.07631564,3276.0,3275.2,3.663886]
[1722271057129,0.07631564,3276.0,3275.2,0.610666]
[1722271057130,3.12887564,3276.0,3275.2,0.610666]
[1722271057619,0.07631564,3276.0,3275.2,3.663886]
[1722271057917,0.07631901,3276.1,3275.2,3.663886]
[1722271058445,2.3275,3276.7,3273.8,1.63538023]
[1722271058446,0.07631907,3276.0,3273.8,1.63538023]
[1722271058645,0.07631907,3276.0,3274.3,3.05407]
[1722271058646,5.38056,3275.4,3274.3,3.05407]
[1722271058846,3.05334,3275.1,3274.1,3.05421]
[1722271059047,0.0763402,3275.0,3274.1,3.665073]
[1722271059208,3.05352,3274.9,3274.1,0.610863]
[1722271059540,0.0763402,3275.0,3273.5,2.3531]
[1722271059541,0.07634631,3274.8,3274.0,3.0543]
[1722271059955,0.07634631,3274.8,3274.1,3.05427]
[1722271060116,0.07634638,3275.1,3274.2,3.1151771]
[1722271060317,2.3275,3275.4,3274.6,3.05374]
[1722271060509,2.3275,3275.4,3274.8,3.05355]
[1722271060710,2.3275,3275.4,3274.8,3.1146153]
[1722271060910,2.3275,3275.4,3274.8,0.0610653]
[1722271061122,2.3275,3275.4,3274.8,0.06106561]
[1722271061324,3.05263,3275.9,3274.7,3.05363]
[1722271061646,0.540863,3275.8,3274.4,3.05398]
[1722271061805,3.05321,3275.3,3274.5,3.0]
[1722271062008,8.62554,3276.0,3273.9,3.05436]
[1722271062009,3.05351,3275.0,3273.9,3.05436]
[1722271062249,3.312,3275.9,3273.6,3.05468]
[1722271062250,3.05381,3274.6,3273.6,3.05468]
[1722271062435,3.054,3274.4,3273.3,3.05498]
[1722271062611,0.07636355,3274.3,3272.6,3.05562]
[1722271062811,3.05439,3274.0,3272.8,3.05546]
[1722271063012,3.05457,3273.8,3271.8,2.4153]
[1722271063213,0.07637035,3273.9,3271.8,2.4153]
[1722271063214,0.07637269,3273.7,3272.8,3.05542]
[1722271063520,0.07637269,3273.7,3272.7,3.05552]
[1722271063714,3.13101269,3273.7,3272.7,3.05552]
[1722271064111,0.07637277,3273.9,3273.1,3.05514]
[1722271064316,2.2879,3274.1,3273.4,3.05491]
[1722271064528,2.2879,3274.1,3273.7,3.05464]
[1722271064729,2.2879,3274.1,3272.8,3.408552]
[1722271064730,3.0535,3275.0,3274.0,3.05429]
[1722271065049,2.2879,3275.3,3273.9,3.05437]
[1722271065050,0.30535,3274.9,3273.9,3.05437]
[1722271065209,0.07635478,3274.8,3273.3,3.055]
[1722271065410,0.07635478,3274.8,3272.8,0.305552]
[1722271065411,2.4133,3274.2,3273.4,6.05492]
[1722271065611,3.05457,3273.8,3272.8,3.361022]
[1722271065823,0.07637748,3273.7,3272.9,3.05539]
[1722271066223,0.07637748,3273.7,3272.8,3.360992]
[1722271066428,0.07637748,3273.7,3272.8,0.305552]
[1722271066631,3.74957823,3273.7,3272.7,3.05557]
[1722271066832,2.4133,3274.2,3272.8,0.06110237]
[1722271067192,2.4133,3274.2,3271.9,1.5]
[1722271067193,0.07637071,3274.1,3273.2,3.05509]
[1722271067329,0.07637071,3274.1,3272.1,3.05613]
[1722271067330,2.4133,3274.2,3273.5,3.05482]
[1722271067672,2.4133,3274.2,3273.3,3.11602349]
[1722271067673,3.05434,3274.1,3273.3,0.06109349]
[1722271067814,3.05436,3274.0,3273.1,3.05519]
[1722271068010,0.07636771,3273.9,3273.0,0.06109607]
[1722271068210,2.4133,3274.2,3273.0,0.06109607]
[1722271068415,2.4133,3274.2,3273.4,3.05486]
[1722271068635,2.4133,3274.2,3273.6,3.05473]
[1722271068912,2.4133,3274.2,3273.4,0.610992]
[1722271068913,2.4133,3274.2,3273.7,3.11566584]
[1722271069118,2.4133,3274.2,3274.0,3.05435]
[1722271069439,3.217,3275.4,3273.8,0.06108397]
[1722271069440,3.05353,3274.9,3273.9,3.05441]
[1722271069771,5.45134,3275.1,3273.8,0.06108397]
[1722271069772,5.45137,3275.1,3274.0,3.0543]
[1722271069946,2.398,3275.1,3274.1,3.05426]
[1722271070132,0.545131,3275.0,3274.1,3.05426]
[1722271070315,3.05343,3275.0,3274.1,3.05426]
[1722271070519,2.398,3275.1,3274.2,3.1126622]
[1722271070740,2.398,3275.1,3274.3,3.11509425]
[1722271070947,3.05278,3275.7,3274.5,3.05387]
[1722271071151,3.05278,3275.7,3274.3,0.06107425]
[1722271071152,2.4921,3275.7,3274.9,3.0535]
[1722271071348,2.4921,3275.7,3275.0,3.05342]
[1722271071561,0.07633095,3275.6,3274.8,3.05355]
[1722271071735,2.4921,3275.7,3274.8,0.06106477]
[1722271071937,2.4921,3275.7,3275.2,3.05317]
[1722271072249,2.4921,3275.7,3275.1,3.05332]
[1722271072437,2.4921,3275.7,3275.1,0.67173217]
[1722271072641,2.4921,3275.7,3275.1,3.72506217]
[1722271073127,2.4921,3275.7,3275.1,0.67173217]
[1722271073328,1.05890521,3277.9,3274.6,0.305387]
[1722271073329,0.07632523,3275.6,3274.6,0.305387]
[1722271073529,2.3226,3276.3,3274.9,3.05343]
[1722271073530,3.05262,3275.9,3274.9,3.05343]
[1722271073729,0.07633036,3275.8,3274.9,3.05343]
[1722271074249,0.07633036,3275.8,3275.0,3.05339]
[1722271074980,0.07633036,3275.8,3275.1,3.05333]
[1722271075193,0.07632749,3276.0,3275.2,3.05319]
[1722271075484,0.07632525,3275.9,3275.1,0.04943809]
[1722271075790,0.07632525,3275.9,3275.1,0.42139707]
[1722271075946,3.05218,3276.4,3275.4,3.05298]
[1722271076153,3.05198,3276.6,3275.5,3.05296]
[1722271076682,3.05198,3276.6,3274.8,3.05356]
[1722271076683,3.05213,3276.4,3275.4,3.05299]
[1722271076830,3.05223,3276.3,3275.4,3.05299]
[1722271077283,3.0521,3276.5,3275.5,3.05293]
[1722271077575,5.4761,3276.9,3275.4,3.05299]
[1722271077576,3.05222,3276.3,3275.4,3.05297]
[1722271077872,3.05222,3276.3,3274.8,3.0536]
[1722271077873,3.05265,3275.9,3274.6,6.359177]
[1722271078073,0.07633066,3275.8,3274.8,3.05355]
[1722271078365,3.05287,3275.6,3274.9,3.0]
[1722271078566,2.2591,3276.1,3274.6,0.305387]
[1722271078567,3.11240174,3275.5,3274.6,3.359127]
[1722271078769,3.12947697,3275.4,3274.3,3.05407]
[1722271078970,0.07633697,3275.4,3274.1,3.05421]
[1722271079157,0.07633697,3275.4,3273.4,3.05487]
[1722271079158,3.05362,3274.8,3273.9,3.0544]
[1722271079344,0.07635048,3274.7,3274.1,3.05419]
[1722271079649,0.07635048,3274.7,3273.9,3.0544]
[1722271079875,2.2591,3275.3,3272.0,2.86370522]
[1722271079876,3.217,3275.3,3272.2,0.77396103]
[1722271080039,3.217,3275.3,3272.2,0.63488918]
[1722271080040,3.05579,3272.5,3272.2,0.63488918]
[1722271080239,3.217,3273.3,3272.2,0.63488918]
[1722271080240,0.07640675,3272.4,3272.2,0.63488918]
[1722271080439,0.07640675,3272.4,3270.4,6.37469]
[1722271080440,3.05421,3274.2,3271.6,0.03027483]
[1722271080662,2.3275,3273.1,3271.6,3.08687483]
[1722271080858,3.13170544,3273.0,3271.7,0.06111635]
[1722271081067,3.13170544,3273.0,3270.7,3.05744]
[1722271081068,3.05582,3272.5,3270.6,1.5]
[1722271081269,3.05537,3273.0,3271.5,3.05668]
[1722271081539,3.05539,3272.9,3271.6,0.01629543]
[1722271081740,2.3275,3273.1,3271.6,3.11770531]
[1722271081741,0.07639414,3272.8,3271.6,3.11770531]
[1722271081970,2.3275,3273.1,3271.6,0.06111531]
[1722271081971,5.38271,3273.1,3271.6,0.06111531]
[1722271082283,0.07639435,3273.0,3271.6,0.06111531]
[1722271082592,3.13169441,3273.0,3271.7,3.0565]
[1722271082756,3.05541,3272.9,3271.8,0.06111157]
[1722271083143,2.3275,3273.1,3271.8,0.06111157]
[1722271083144,3.05548,3272.8,3271.8,0.06111157]
[1722271083336,2.3275,3273.1,3271.8,0.06111157]
[1722271083337,3.05533,3273.0,3271.8,0.06111157]
[1722271083580,3.05533,3273.0,3271.7,3.0]
[1722271083581,3.05567,3272.6,3271.7,3.0]
[1722271083740,3.05567,3272.6,3271.3,6.36224]
[1722271083741,3.13174279,3273.0,3271.4,3.05679]
[1722271084102,3.13174279,3273.0,3271.3,3.3054]
[1722271084103,3.05569,3272.6,3271.5,3.0]
[1722271084307,3.0557,3272.6,3271.3,6.05688]
[1722271084437,3.0557,3272.6,3271.4,0.55]
[1722271084744,3.0557,3272.6,3271.3,6.05688]
[1722271084745,3.13216428,3272.5,3271.3,3.0]
[1722271084943,3.13216428,3272.5,3271.0,3.05715]
[1722271084944,3.05615,3272.1,3271.4,0.3]
[1722271085159,0.07640952,3272.0,3270.6,1.5]
[1722271085377,0.07640952,3272.0,3270.3,2.0309]
[1722271085378,2.499,3272.0,3270.3,2.0309]
[1722271085697,2.499,3272.0,3270.1,3.05792]
[1722271085698,3.05642,3271.8,3270.1,3.05792]
[1722271085841,3.05691,3271.3,3270.2,0.305792]
[1722271086042,3.05672,3271.5,3270.2,0.305792]
[1722271086043,3.1332321,3271.4,3270.2,0.305792]
[1722271086248,3.05689,3271.3,3270.2,0.305792]
[1722271086491,3.13331713,3271.3,3270.1,3.05799]
[1722271086863,3.05698,3271.2,3270.0,3.05808]
[1722271087069,3.05648,3271.8,3270.6,3.05753]
[1722271087243,0.07641377,3271.9,3270.3,1.5]
[1722271087441,3.05661,3271.6,3270.5,3.0576]
[1722271087654,3.05661,3271.6,3269.7,3.20395]
[1722271087655,0.07641456,3271.5,3270.6,0.30576]
[1722271087862,3.05663,3271.6,3270.6,0.30576]
[1722271087863,5.55523,3272.0,3270.8,3.05731]
[1722271088180,3.05638,3271.9,3270.9,0.02041118]
[1722271088606,3.05638,3271.9,3269.6,0.31406583]
[1722271088607,3.217,3271.1,3269.6,0.31406583]
[1722271088895,2.2841,3271.4,3269.6,3.05844]
[1722271088896,3.05745,3270.7,3269.6,3.05844]
[1722271089052,3.05711,3271.1,3269.8,0.04609138]
[1722271089409,2.2841,3271.4,3269.8,0.04609138]
[1722271089563,2.2841,3271.4,3270.5,3.05761]
[1722271089747,2.2841,3272.2,3271.1,3.05707]
[1722271089949,2.2841,3272.2,3271.2,0.02029427]
[1722271090187,3.05633,3271.9,3271.0,0.04599955]
[1722271090350,3.05622,3272.1,3271.0,0.35633151]
[1722271090688,2.2841,3272.8,3271.1,2.05]
[1722271090894,0.07639573,3272.7,3271.5,3.05663]
[1722271091193,0.07639573,3272.7,3271.2,3.10292888]
[1722271091194,3.0558,3272.5,3271.6,0.305663]
[1722271091392,3.05595,3272.3,3271.3,3.0]
[1722271091554,3.05595,3272.3,3270.9,2.4873]
[1722271091555,11.45504,3271.2,3269.3,1.59513001]
[1722271091751,11.45504,3271.2,3268.8,0.31421885]
[1722271091752,3.05744,3270.8,3269.7,3.20398]
[1722271091997,3.05728,3270.9,3269.8,0.0460946]
[1722271092150,0.07644811,3271.0,3269.8,0.0460946]
[1722271092351,0.07644811,3271.0,3269.7,0.14562]
[1722271092546,0.07644811,3271.0,3269.7,0.466031]
[1722271092547,3.05746,3270.7,3269.7,0.466031]
[1722271092747,3.05762,3270.6,3269.7,0.14562]
[1722271092986,3.05791,3270.3,3269.7,0.14562]
[1722271093186,2.2841,3271.2,3269.7,0.14562]
[1722271093187,3.05817,3270.0,3269.7,0.14562]
[1722271093486,6.11658,3269.8,3269.7,0.14562]
[1722271093873,2.278,3269.9,3269.7,0.14562]
[1722271094074,3.05597,3272.3,3269.7,0.14562]
[1722271094075,3.0578,3270.4,3269.7,0.14562]
[1722271094280,0.07645567,3270.3,3269.7,0.14562]
[1722271094480,2.4583,3271.2,3270.2,3.05791]
[1722271094650,3.05669,3271.6,3270.4,3.05772]
[1722271094853,2.4583,3271.8,3270.5,0.04605701]
[1722271094854,5.51476,3271.8,3270.5,0.04605701]
[1722271095060,3.13294316,3271.7,3270.6,3.0575]
[1722271095291,3.13294316,3271.7,3270.6,3.6736187]
[1722271095463,2.4583,3272.7,3270.6,0.6161187]
[1722271095809,2.4583,3272.7,3270.1,6.05795]
[1722271095810,3.05611,3272.2,3271.1,3.05702]
[1722271095979,3.05611,3272.2,3270.8,3.05734]
[1722271095980,3.05627,3272.0,3270.8,3.0]
[1722271096184,0.07641359,3272.1,3271.3,3.05681]
[1722271096478,0.07641359,3272.1,3271.3,3.0568]
[1722271096789,0.07641032,3272.4,3271.2,3.05696]
[1722271097105,3.05569,3272.6,3271.5,3.05666]
[1722271097106,0.07641034,3272.6,3271.5,3.05666]
[1722271097403,0.07640426,3272.6,3271.5,3.05666]
[1722271097587,0.07640426,3272.6,3271.8,3.05641]
[1722271097788,3.05541,3272.9,3271.9,3.10229391]
[1722271097989,0.07639884,3272.8,3271.9,3.10229391]
[1722271098175,3.05559,3272.7,3271.8,0.91589881]
[1722271098378,0.0763989,3272.6,3271.8,0.91589881]
[1722271098810,3.05507,3273.3,3271.9,0.42993659]
[1722271098811,3.05523,3273.1,3271.9,0.42993659]
[1722271098979,3.11630196,3273.0,3271.9,3.08900571]
[1722271099179,3.0554,3272.9,3271.9,3.05631]
[1722271099374,0.07639517,3272.8,3271.7,3.0565]
[1722271099569,0.07639517,3272.8,3271.9,3.05632]
[1722271099970,0.07639517,3272.8,3272.0,3.05622]
[1722271100398,0.07639517,3272.8,3271.6,3.05652]
[1722271100711,3.05592,3272.4,3271.3,0.305696]
[1722271100897,3.05627,3272.0,3271.0,3.05716]
[1722271101218,0.07641789,3271.9,3271.2,3.0569]
[1722271101506,0.07641549,3272.1,3270.7,3.05739]
[1722271101710,3.05579,3272.5,3271.3,3.05686]
[1722271102006,3.05579,3272.5,3271.5,3.05663]
[1722271102007,0.07641085,3272.4,3271.5,3.05663]
[1722271102272,0.07641085,3272.4,3270.8,0.455739]
[1722271102273,3.05596,3272.3,3271.1,3.05704]
[1722271102392,3.44576309,3272.2,3270.9,3.05725]
[1722271102591,0.07641601,3272.2,3271.1,3.05707]
[1722271102793,0.07641601,3272.2,3271.2,6.05697]
[1722271102994,0.07641601,3272.2,3271.6,3.05659]
[1722271103195,0.0764104,3272.5,3271.4,3.05675]
[1722271103563,3.05499,3273.4,3272.3,3.05588]
[1722271103699,0.07639085,3273.3,3272.2,3.05604]
[1722271103880,0.07638559,3273.2,3272.1,3.05608]
[1722271104079,0.07638559,3273.2,3272.0,3.0562]
[1722271104080,3.05536,3273.0,3272.0,3.0562]
[1722271104320,3.05536,3273.0,3271.6,3.0]
[1722271104321,0.07639123,3273.1,3271.6,3.0]
[1722271104623,2.2985,3273.5,3271.5,2.05]
[1722271104624,0.07638617,3273.4,3272.5,3.05573]
[1722271104840,3.05422,3274.2,3272.0,4.5]
[1722271104841,2.2985,3274.2,3272.0,4.5]
[1722271104983,0.30622581,3274.1,3272.9,3.05531]
[1722271105178,0.30622581,3274.1,3272.4,3.05581]
[1722271105179,3.05457,3273.8,3272.6,3.05564]
[1722271105383,0.22985,3274.1,3272.7,0.04592109]
[1722271105620,3.05446,3273.9,3272.7,3.10147109]
[1722271105926,0.22985,3274.1,3273.1,3.05514]
[1722271106111,3.28413,3274.1,3273.1,3.05514]
[1722271106309,0.252835,3274.0,3273.0,3.101172]
[1722271106485,3.05446,3273.9,3273.0,0.045912]
[1722271106818,0.252835,3274.0,3273.0,0.045912]
[1722271106819,3.307205,3274.0,3273.0,3.101202]
[1722271106993,2.2985,3274.2,3273.1,3.0552]
[1722271107192,2.2985,3274.2,3273.0,0.045912]
[1722271107193,0.0763683,3274.1,3272.8,3.0]
[1722271107728,0.0763683,3274.1,3272.9,3.05533]
[1722271107949,2.2985,3274.2,3273.2,3.05504]
[1722271108084,2.2985,3274.2,3273.3,0.04589478]
[1722271108085,0.07636485,3274.1,3273.3,0.04589478]
[1722271108284,2.2985,3274.2,3273.5,3.05477]
[1722271108520,2.4834,3274.8,3273.8,3.05455]
[1722271108725,2.4834,3274.8,3273.9,3.05439]
[1722271109094,2.4834,3274.8,3273.5,3.05482]
[1722271109425,2.4834,3274.8,3274.1,3.05424]
[1722271110088,0.07634946,3274.7,3274.1,3.05424]
[1722271110294,2.4834,3274.8,3274.3,3.05406]
[1722271110605,3.05333,3275.2,3274.1,3.0542]
[1722271110924,3.05333,3275.2,3273.6,3.0]
[1722271110925,3.05346,3275.0,3273.6,3.0]
[1722271111153,0.07635416,3274.9,3273.3,3.05498]
[1722271111451,0.07636064,3274.9,3273.9,3.05445]
[1722271111735,0.06103515,3274.8,3273.5,1.5]
[1722271111946,0.37248367,3274.8,3274.1,3.05421]
[1722271112106,5.48876,3275.4,3274.4,3.05393]
[1722271112431,3.05343,3275.0,3274.2,0.04584935]
[1722271112613,2.4357,3275.4,3274.0,0.0458492]
[1722271112614,0.07634586,3274.9,3274.0,0.0458492]
[1722271112944,2.4357,3275.4,3274.6,3.05374]
[1722271113169,0.24357,3275.3,3274.0,3.05432]
[1722271113301,2.4357,3275.4,3274.7,3.0537]
[1722271113641,0.07632965,3275.3,3274.3,3.05406]
[1722271113838,0.07632965,3275.3,3274.6,3.05378]
[1722271114145,0.0763387,3275.5,3275.0,3.05335]
[1722271114343,2.6069,3276.0,3275.1,0.04579669]
[1722271114544,2.6069,3276.0,3275.2,3.05318]
[1722271115253,2.6069,3276.0,3274.4,4.5]
[1722271115254,2.2852,3276.0,3275.3,0.04579144]
[1722271115428,2.2852,3276.0,3275.6,3.05286]
[1722271115739,2.4685,3276.6,3275.6,3.05286]
[1722271115946,2.4685,3276.6,3275.8,3.05263]
[1722271116316,2.4685,3276.6,3275.6,3.05286]
[1722271116523,3.020525,3276.6,3275.8,3.05267]
[1722271116842,2.4685,3276.6,3275.8,3.05267]
[1722271117163,2.4685,3276.6,3275.9,3.05258]
[1722271117308,2.4685,3276.6,3275.0,1.5]
[1722271117309,3.05154,3277.1,3275.3,3.0]
[1722271117651,0.0763056,3277.0,3275.6,3.0528]
[1722271117811,3.05201,3276.6,3275.6,3.0528]
[1722271118140,0.32722616,3277.0,3275.3,3.0]
[1722271118141,3.30250056,3277.0,3275.3,3.0]
[1722271118311,0.25092056,3277.0,3276.1,3.05234]
[1722271118512,0.25092056,3277.0,3275.6,3.05281]
[1722271118513,0.25092056,3277.0,3276.2,3.05225]
[1722271118736,0.25092056,3277.0,3276.3,3.05221]
[1722271119047,0.25092056,3277.0,3276.3,3.07088431]
[1722271119246,0.25092056,3277.0,3276.3,3.05221]
[1722271119452,2.4329,3277.2,3276.5,3.05203]
[1722271119750,0.07629235,3277.1,3276.2,3.05228]
[1722271119948,0.07629235,3277.1,3276.3,0.04572099]
[1722271120108,0.07629235,3277.1,3276.2,3.05231]
[1722271120109,3.12778235,3277.1,3276.2,3.05231]
[1722271120308,3.98904459,3277.1,3276.1,3.05234]
[1722271120510,3.98904459,3277.1,3275.5,4.5]
[1722271120815,0.93750459,3277.1,3276.2,3.05225]
[1722271121344,0.93750459,3277.1,3276.3,0.04573211]
[1722271121714,3.98899459,3277.1,3276.1,3.05233]
[1722271121917,0.41313677,3277.0,3275.9,3.05257]
[1722271122225,0.07629712,3276.9,3276.1,3.05231]
[1722271122422,2.4329,3277.2,3275.6,3.0]
[1722271122423,2.4329,3277.2,3276.4,3.05212]
[1722271122654,2.4329,3277.2,3276.2,3.05231]
[1722271122949,0.24329,3277.1,3276.2,3.05224]
[1722271123151,0.07629244,3277.0,3276.0,3.05248]
[1722271123447,0.07629244,3277.0,3275.8,3.05265]
[1722271123650,0.07629244,3277.0,3276.0,3.05244]
[1722271123868,2.4329,3277.2,3276.4,3.05206]
[1722271124176,2.4329,3277.2,3276.5,0.01902113]
[1722271124463,6.217,3278.1,3276.5,0.01902113]
[1722271124464,5.51776,3277.9,3276.5,0.04571895]
[1722271124756,0.551776,3277.8,3276.9,3.05159]
[1722271124949,0.551776,3277.8,3276.0,4.5]
[1722271124950,2.467,3277.9,3277.2,3.05138]
[1722271125123,2.467,3277.9,3277.2,3.09706027]
[1722271125323,3.05047,3278.2,3277.3,3.05125]
[1722271125545,3.660545,3278.2,3277.3,3.05125]
[1722271125888,0.07627126,3278.1,3277.5,3.05104]
[1722271126213,2.285,3278.5,3277.7,3.05083]
[1722271126338,2.285,3278.5,3277.6,0.04566167]
[1722271126540,3.05027,3278.4,3277.6,0.04566167]
[1722271126739,3.05041,3278.3,3277.6,0.04566167]
[1722271126995,3.12653443,3278.4,3277.6,0.04566167]
[1722271127421,3.12653443,3278.4,3277.4,0.0456539]
[1722271127557,5.33518,3278.5,3277.6,3.05101]
[1722271127903,0.07626446,3278.4,3277.7,3.09648383]
[1722271128174,0.07626446,3278.4,3276.8,4.5]
[1722271128175,3.0492,3279.6,3278.0,4.55059]
[1722271128495,0.375,3280.3,3278.5,3.05015]
[1722271128694,0.375,3280.3,3279.0,3.04964]
[1722271128695,3.04875,3280.1,3279.0,3.04964]
[1722271128994,3.04875,3280.1,3278.8,3.04986]
[1722271128995,2.66,3280.3,3279.2,2.2582]
[1722271128996,0.375,3280.3,3279.2,2.2582]
[1722271129205,0.375,3280.3,3280.1,3.04868]
[1722271129404,0.375,3280.3,3280.0,3.04876]
[1722271129609,3.04759,3281.3,3280.3,3.04846]
[1722271129610,3.04763,3281.3,3280.3,3.04846]
[1722271129742,3.04763,3281.3,3279.8,1.5]
[1722271129743,0.07620336,3281.2,3279.8,1.5]
[1722271129943,3.317,3282.8,3279.8,1.5]
[1722271129944,3.04712,3281.8,3280.8,3.04802]
[1722271130479,0.07619377,3281.7,3280.9,3.04787]
[1722271130642,0.38851615,3281.7,3280.9,3.04787]
[1722271130844,0.38851615,3281.7,3280.8,3.04803]
[1722271131251,3.43572615,3281.7,3280.9,0.04547308]
[1722271131555,3.04768,3281.2,3279.9,3.04887]
[1722271131760,0.07620775,3281.1,3279.8,3.0]
[1722271131955,3.04803,3280.8,3279.8,6.04895]
[1722271132154,0.07621055,3280.7,3279.8,3.04895]
[1722271132377,0.07621055,3280.7,3278.7,0.3054]
[1722271132673,3.04907,3279.7,3278.5,3.0501]
[1722271132872,2.3494,3280.6,3278.3,2.3295]
[1722271133056,2.3494,3280.6,3278.8,3.04987]
[1722271133057,3.04879,3280.0,3278.8,3.04987]
[1722271133252,0.07623176,3279.9,3278.8,3.354857]
[1722271133583,0.07623176,3279.9,3278.8,0.304987]
[1722271133803,0.0762183,3280.5,3279.7,3.04899]
[1722271134008,3.04795,3280.9,3279.8,0.04553576]
[1722271134216,2.2653,3281.2,3280.1,3.04868]
[1722271134374,5.31303,3281.2,3280.2,0.04551596]
[1722271134703,5.31303,3281.2,3279.9,3.04886]
[1722271134704,0.07620199,3281.1,3279.9,3.04886]
[1722271134918,0.07620199,3281.1,3279.9,0.304886]
[1722271135073,0.07620199,3281.1,3280.4,3.04838]
[1722271135496,3.04738,3281.6,3280.5,0.04549962]
[1722271135708,3.04738,3281.6,3280.6,3.04815]
[1722271135709,3.04729,3281.6,3280.6,3.04815]
[1722271135913,3.04729,3281.6,3280.0,6.04873]
[1722271135914,3.12348342,3281.6,3280.3,3.04849]
[1722271136205,0.07619342,3281.6,3280.7,3.04805]
[1722271136412,0.07619342,3281.6,3280.3,0.609717]
[1722271136413,3.217,3282.6,3280.8,0.04546973]
[1722271136596,3.04713,3281.8,3280.8,3.09341973]
[1722271136796,3.04736,3281.6,3280.6,3.04815]
[1722271136998,3.04736,3281.6,3279.1,3.04953]
[1722271136999,3.04776,3281.1,3279.4,1.5]
[1722271137310,3.04762,3281.3,3280.1,6.04859]
[1722271137477,3.04762,3281.3,3280.3,3.0485]
[1722271137478,3.12382105,3281.3,3280.3,3.0485]
[1722271137672,3.35974476,3281.5,3280.3,3.0485]
[1722271137673,3.12386198,3281.2,3280.3,3.0485]
[1722271137879,3.12386198,3281.2,3280.0,0.2]
[1722271137880,3.04786,3281.0,3280.0,0.2]
[1722271138207,0.07620198,3281.2,3280.3,3.0485]
[1722271138393,3.12386198,3281.2,3280.2,3.04859]
[1722271138580,0.07620296,3281.1,3280.2,3.04859]
[1722271138781,0.07620296,3281.1,3280.0,0.2]
[1722271139012,0.07620296,3281.1,3280.2,3.04857]
[1722271139307,0.07620296,3281.1,3280.3,0.0455062]
[1722271139512,0.07620296,3281.1,3280.0,0.2]
[1722271139513,0.07620296,3281.1,3280.1,3.09410862]
[1722271139694,3.12388315,3281.2,3280.3,3.04848]
[1722271140074,0.07620315,3281.2,3280.2,0.32941086]
[1722271140283,0.07620315,3281.2,3280.4,3.0484]
[1722271140479,2.3186,3281.8,3280.0,0.2]
[1722271140677,2.3186,3281.8,3280.3,3.04848]
[1722271140678,0.30806313,3281.7,3280.3,3.04848]
[1722271140911,3.04786,3281.0,3280.1,3.04865]
[1722271141080,3.04811,3280.8,3280.0,0.2]
[1722271141285,0.07620623,3280.7,3280.0,0.2]
[1722271141501,3.12433623,3280.7,3280.0,0.2]
[1722271141704,3.04822,3280.6,3280.0,0.2]
[1722271141910,3.12458162,3280.5,3280.0,0.2]
[1722271142109,3.04847,3280.4,3280.0,0.2]
[1722271142310,3.04868,3280.1,3280.0,0.2]
[1722271142514,3.12472037,3280.3,3280.0,0.2]
[1722271142815,3.04868,3280.1,3280.0,0.2]
[1722271143140,0.07622371,3280.2,3280.0,0.2]
[1722271143281,3.12483371,3280.2,3280.0,0.2]
[1722271143818,0.07622371,3280.2,3280.0,0.2]
[1722271144402,0.07622261,3280.9,3280.0,0.2]
[1722271144604,3.04785,3281.0,3280.0,0.2]
[1722271144790,3.317,3282.3,3280.0,0.2]
[1722271144791,3.04762,3281.3,3280.0,0.2]
[1722271144988,3.04734,3281.6,3280.0,3.24869]
[1722271145188,3.04763,3281.3,3280.3,3.04848]
[1722271145389,3.04763,3281.3,3280.4,3.0484]
[1722271145918,3.04739,3281.5,3280.5,0.04550342]
[1722271146214,3.12170996,3281.4,3280.5,0.04550342]
[1722271146416,3.12170996,3281.4,3280.2,3.04858]
[1722271146417,3.12170996,3281.4,3280.2,3.04856]
[1722271146581,3.12170996,3281.4,3280.0,0.2]
[1722271146789,3.43388096,3281.4,3280.0,0.2]
[1722271146989,3.04766,3281.2,3280.0,3.2]
[1722271147289,0.07619997,3281.1,3280.2,3.04853]
[1722271147608,3.217,3282.1,3280.0,0.2]
[1722271147609,3.04701,3281.9,3280.6,3.04815]
[1722271147783,0.07618745,3281.8,3280.7,0.304815]
[1722271148122,0.07618745,3281.8,3280.0,0.2]
[1722271148123,3.04781,3281.1,3280.0,3.24871]
[1722271148338,3.04755,3281.4,3280.0,3.24871]